{"text_format":"3","workbook":"xlsx","n_sheets":1,"sheets":["Boodschappenlijst"],"not_rendered":{"images":1,"external_links":1,"defined_names":3},"read":"whole","date_system":"1900"}

{"sheet":"Boodschappenlijst","index":0,"n_rows":31,"n_cols":8,"rows_kept":31,"merged":[[1,1,1,2]]}
[null,"Boodschappenlijst"]
[null,"DATUM"]
[null,"Gekocht?","Artikel","Categorie","Aantal","Prijs","Totaalprijs","Merk/opmerkingen"]
[null,null,"Sinaasappels","Groenten en fruit",null,null,{"$f":"IFERROR(SUM(Boodschappenlijst[Aantal]*Boodschappenlijst[Prijs]), \"\")","v":{"v":0,"d":"€ 0.00"}}]
[null,null,"Appels","Groenten en fruit",null,null,{"$f":"IFERROR(SUM(Boodschappenlijst[Aantal]*Boodschappenlijst[Prijs]), \"\")","v":{"v":0,"d":"€ 0.00"}}]
[null,null,"Bananen","Groenten en fruit",null,null,{"$f":"IFERROR(SUM(Boodschappenlijst[Aantal]*Boodschappenlijst[Prijs]), \"\")","v":{"v":0,"d":"€ 0.00"}}]
[null,null,"Sla","Groenten en fruit",null,null,{"$f":"IFERROR(SUM(Boodschappenlijst[Aantal]*Boodschappenlijst[Prijs]), \"\")","v":{"v":0,"d":"€ 0.00"}}]
[null,null,"Tomaten","Groenten en fruit",null,null,{"$f":"IFERROR(SUM(Boodschappenlijst[Aantal]*Boodschappenlijst[Prijs]), \"\")","v":{"v":0,"d":"€ 0.00"}},"  "]
[null,null,"Melk ","Zuivel",null,null,{"$f":"IFERROR(SUM(Boodschappenlijst[Aantal]*Boodschappenlijst[Prijs]), \"\")","v":{"v":0,"d":"€ 0.00"}}]
[null,null,"Kaas","Zuivel",null,null,{"$f":"IFERROR(SUM(Boodschappenlijst[Aantal]*Boodschappenlijst[Prijs]), \"\")","v":{"v":0,"d":"€ 0.00"}}]
[null,null,"Eieren","Zuivel",null,null,{"$f":"IFERROR(SUM(Boodschappenlijst[Aantal]*Boodschappenlijst[Prijs]), \"\")","v":{"v":0,"d":"€ 0.00"}}]
[null,null,"Kwark","Zuivel",null,null,{"$f":"IFERROR(SUM(Boodschappenlijst[Aantal]*Boodschappenlijst[Prijs]), \"\")","v":{"v":0,"d":"€ 0.00"}}]
[null,null,"Rundvlees","Vlees",null,null,{"$f":"IFERROR(SUM(Boodschappenlijst[Aantal]*Boodschappenlijst[Prijs]), \"\")","v":{"v":0,"d":"€ 0.00"}}]
[null,null,"Gevogelte","Vlees",null,null,{"$f":"IFERROR(SUM(Boodschappenlijst[Aantal]*Boodschappenlijst[Prijs]), \"\")","v":{"v":0,"d":"€ 0.00"}}]
[null,null,"Ham","Vlees",null,null,{"$f":"IFERROR(SUM(Boodschappenlijst[Aantal]*Boodschappenlijst[Prijs]), \"\")","v":{"v":0,"d":"€ 0.00"}}]
[null,null,"Sap","Drank",null,null,{"$f":"IFERROR(SUM(Boodschappenlijst[Aantal]*Boodschappenlijst[Prijs]), \"\")","v":{"v":0,"d":"€ 0.00"}}]
[null,null,"Koffie","Drank",null,null,{"$f":"IFERROR(SUM(Boodschappenlijst[Aantal]*Boodschappenlijst[Prijs]), \"\")","v":{"v":0,"d":"€ 0.00"}}]
[null,null,"Thee","Drank",null,null,{"$f":"IFERROR(SUM(Boodschappenlijst[Aantal]*Boodschappenlijst[Prijs]), \"\")","v":{"v":0,"d":"€ 0.00"}}]
[null,null,"Water","Drank",null,null,{"$f":"IFERROR(SUM(Boodschappenlijst[Aantal]*Boodschappenlijst[Prijs]), \"\")","v":{"v":0,"d":"€ 0.00"}}]
[null,null,"Noedels","Pasta",null,null,{"$f":"IFERROR(SUM(Boodschappenlijst[Aantal]*Boodschappenlijst[Prijs]), \"\")","v":{"v":0,"d":"€ 0.00"}}]
[null,null,"Rijst","Pasta",null,null,{"$f":"IFERROR(SUM(Boodschappenlijst[Aantal]*Boodschappenlijst[Prijs]), \"\")","v":{"v":0,"d":"€ 0.00"}}]
[null,null,"Blik","Soep",null,null,{"$f":"IFERROR(SUM(Boodschappenlijst[Aantal]*Boodschappenlijst[Prijs]), \"\")","v":{"v":0,"d":"€ 0.00"}}]
[null,null,"Droge mix","Soep",null,null,{"$f":"IFERROR(SUM(Boodschappenlijst[Aantal]*Boodschappenlijst[Prijs]), \"\")","v":{"v":0,"d":"€ 0.00"}}]
[null,null,"Brood","Bakker",null,null,{"$f":"IFERROR(SUM(Boodschappenlijst[Aantal]*Boodschappenlijst[Prijs]), \"\")","v":{"v":0,"d":"€ 0.00"}}]
[null,null,"Chips","Snacks",null,null,{"$f":"IFERROR(SUM(Boodschappenlijst[Aantal]*Boodschappenlijst[Prijs]), \"\")","v":{"v":0,"d":"€ 0.00"}}]
[null,null,"Zoutjes","Snacks",null,null,{"$f":"IFERROR(SUM(Boodschappenlijst[Aantal]*Boodschappenlijst[Prijs]), \"\")","v":{"v":0,"d":"€ 0.00"}}]
[null,null,"IJs","Snacks",null,null,{"$f":"IFERROR(SUM(Boodschappenlijst[Aantal]*Boodschappenlijst[Prijs]), \"\")","v":{"v":0,"d":"€ 0.00"}}]
[null,null,"Koekjes","Snacks",null,null,{"$f":"IFERROR(SUM(Boodschappenlijst[Aantal]*Boodschappenlijst[Prijs]), \"\")","v":{"v":0,"d":"€ 0.00"}}]
[null,null,"Papieren bordjes","Voorraad",null,null,{"$f":"IFERROR(SUM(Boodschappenlijst[Aantal]*Boodschappenlijst[Prijs]), \"\")","v":{"v":0,"d":"€ 0.00"}}]
[null,null,"Servetten","Voorraad",null,null,{"$f":"IFERROR(SUM(Boodschappenlijst[Aantal]*Boodschappenlijst[Prijs]), \"\")","v":{"v":0,"d":"€ 0.00"}}]
[{"$nulls":6},{"$f":"SUBTOTAL(109,Boodschappenlijst[Totaalprijs])","v":{"v":0,"d":"€ 0.00"}}]